Cogmind - Beta 10.2 @@@ ROGUE MODE // 2021.12.06 @ 05:44:53 // Winter2019/RPGLIKE Player: FontPeg Result: Destroyed by G-67 Veteran with Plasma Rifle Performance ------------- Evolutions (7) 3500 Regions Visited (18) 3600 Robots Destroyed (104) 520 Value Destroyed (4085) 4085 Prototype IDs (38) 760 Alien Tech Used (0) 0 Bonus (3487) 3487 TOTAL SCORE: 15952 Bonus ------- Triggered Max Security 1000 High Alert Combat Kills 252 Follower Combat Kills 1269 Aligned with FarCom 300 Met Data Miner 300 Scanned by Researcher 500 Friendly Fire -134 Cogmind --------- Core Integrity 0/1600 Matter 299/300 Energy 520/520 System Corruption 8% Temperature Cool (-179) Movement Flying (34) Location -3/Testing Parts ------- > --- POWER (2) -------- Particle Reactor Light Particle Reactor > --- PROPULSION (5) --- Field Propulsion Drive Field Propulsion Array Impulse Thruster Array > --- UTILITY (9) ------ Improved Thermal Converter Advanced Cryofiber Web Advanced Cooling System Advanced Targeting Computer Improved ECM Suite Hacking Suite Improved Hacking Suite Improved System Shield > --- WEAPON (3) ------- Quantum Rifle > --- INVENTORY (6) ---- Protomatter-62 Protomatter-3 Neutron Cannon Neutron Cannon Peak State ------------ > --- POWER ------------ Particle Reactor Compact Particle Reactor > --- PROPULSION ------- Field Propulsion Drive Field Propulsion Array Impulse Thruster Array > --- UTILITY ---------- Improved Thermal Converter Advanced Cryofiber Web Advanced Cooling System Advanced Targeting Computer Improved Particle Charger Improved ECM Suite Hacking Suite Improved Hacking Suite Improved System Shield > --- WEAPON ----------- Quantum Rifle Neutron Cannon Null Cannon > --- INVENTORY -------- Protomatter Protomatter F-cell Engine Light Particle Reactor Neutron Cannon Neutron Cannon [Rating: 124] Favorites ----------- Power Light Angular Momentum Engine Engine Light Angular Momentum Engine Power Core Light Fission Core Reactor Light Particle Reactor Propulsion Field Propulsion Drive Wheel Wheel Hover Unit Hover Unit Flight Unit Field Propulsion Drive Utility Hacking Suite Device Advanced Weight Redist. System Processor Advanced Targeting Computer Hackware Hacking Suite Protection Light Armor Plating Weapon Improved Heavy Laser Energy Gun Improved Heavy Laser Energy Cannon Beam Cannon Launcher Improved Proton Missile Launcher Build | -11 -10 -10 -9 -9 -9 -8 -8 -7 -6 -6 -6 -6 -5 -5 -5 -4 -3 -3 ------- Run | Scr Mat Min Mat Min Exi Min Mat Fac Fac Low Low Dat Pro Fac Ext Fac Res Tes Slots Evolved 15 | 3 1 1 . . . . 4 . . 1 . . 1 1 1 1 1 . Power 1 | . . . . . . . 1 . . . . . . . . . . . Propulsion 4 | 1 . . . . . . 1 . . . . . . 1 . 1 . . Utility 8 | 1 1 1 . . . . 1 . . 1 . . 1 . 1 . 1 . Weapon 2 | 1 . . . . . . 1 . . . . . . . . . . . Parts Attached 101 | 3 17 1 1 . 2 1 12 8 19 2 3 . 2 7 1 10 2 10 Power 23 | . 2 . . . . . 1 3 4 . 2 . . 1 . 4 1 5 Engine 11 | . 2 . . . . . 1 2 1 . 1 . . 1 . 2 . 1 Core 6 | . . . . . . . . 1 3 . 1 . . . . 1 . . Reactor 6 | . . . . . . . . . . . . . . . . 1 1 4 Propulsion 25 | 1 4 1 . . . . 6 3 4 . . . . 3 . 2 . 1 Treads . | . . . . . . . . . . . . . . . . . . . Leg . | . . . . . . . . . . . . . . . . . . . Wheel 2 | 1 1 . . . . . . . . . . . . . . . . . Hover 6 | . 3 1 . . . . 2 . . . . . . . . . . . Flight 17 | . . . . . . . 4 3 4 . . . . 3 . 2 . 1 Utility 33 | . 6 . 1 . 2 1 1 2 7 2 . . 2 1 1 4 1 2 Device 24 | . 3 . 1 . 2 . . 1 5 1 . . 2 1 1 4 1 2 Storage . | . . . . . . . . . . . . . . . . . . . Processor 2 | . 1 . . . . . 1 . . . . . . . . . . . Hackware 4 | . 1 . . . . . . 1 1 1 . . . . . . . . Protection 3 | . 1 . . . . 1 . . 1 . . . . . . . . . Artifact . | . . . . . . . . . . . . . . . . . . . Weapon 20 | 2 5 . . . . . 4 . 4 . 1 . . 2 . . . 2 Energy Gun 13 | 2 3 . . . . . 3 . 3 . . . . 1 . . . 1 Energy Cannon 6 | . 2 . . . . . 1 . . . 1 . . 1 . . . 1 Ballistic Gun . | . . . . . . . . . . . . . . . . . . . Ballistic Cannon . | . . . . . . . . . . . . . . . . . . . Launcher 1 | . . . . . . . . . 1 . . . . . . . . . Special Weapon . | . . . . . . . . . . . . . . . . . . . Impact Weapon . | . . . . . . . . . . . . . . . . . . . Slashing Weapon . | . . . . . . . . . . . . . . . . . . . Piercing Weapon . | . . . . . . . . . . . . . . . . . . . Special Melee Weapon . | . . . . . . . . . . . . . . . . . . . Unidentified Prototypes 13 | . . . . . 2 . 3 . 2 . . . . 1 . 2 . 3 Parts Lost 1 | . . . . . . . . . . . . . . . . . . 1 Power . | . . . . . . . . . . . . . . . . . . . Propulsion . | . . . . . . . . . . . . . . . . . . . Utility 1 | . . . . . . . . . . . . . . . . . . 1 Weapon . | . . . . . . . . . . . . . . . . . . . Highest Loss Streak 1 | . . . . . . . . . . . . . . . . . . 1 Average Slot Usage (%) 95 | . 89 95 98 100 97 95 91 96 99 100 98 100 100 99 94 88 92 85 Engine 8 | . 8 11 11 11 11 11 11 10 7 7 7 7 6 6 11 9 5 2 Core 2 | . . . . . . . . 1 7 7 7 7 6 5 . . . . Wheel 1 | . 10 . . . . . . . . . . . . . . . . . Hover 6 | . 15 23 22 22 22 22 12 . . . . . . . . . . . Flight 14 | . . . . . . . 9 23 23 21 21 21 20 20 23 21 21 15 Device 15 | . 12 11 20 22 19 11 7 6 12 14 14 14 19 19 17 17 24 25 Processor 4 | . . . . . . . 4 7 7 7 7 7 6 6 5 5 5 5 Hackware 14 | . 12 11 11 11 11 11 7 13 14 21 21 21 20 19 17 16 15 15 Protection 4 | . 1 11 11 11 11 17 15 9 2 . . . . . . . . . Energy Gun 13 | . 18 11 11 11 11 11 11 15 19 14 14 14 13 12 11 11 10 7 Energy Cannon 6 | . 9 11 11 11 11 11 7 7 2 . 1 7 6 6 5 5 5 5 Naked Turns . | . . . . . . . . . . . . . . . . . . . Heaviest Build 62 | 4 12 12 13 13 13 15 25 27 34 35 36 36 40 46 46 51 55 62 Greatest Support 64 | 15 31 17 17 17 17 17 27 35 41 41 41 41 41 46 46 64 55 64 Greatest Overweight (x) 3 | . . . . . . . 3 1 . . . . 2 . 2 1 . . Average Overweight (x) . | . . . . . . . . . . . . . . . . . . . Largest Inventory Capacity 6 | 2 2 3 3 3 3 3 3 4 4 5 5 5 5 5 6 6 6 6 Average Capacity 4 | 2 2 2 3 3 3 3 3 3 4 4 5 5 5 5 5 6 6 6 Most Carried 6 | 2 2 2 3 2 3 2 3 4 4 5 5 4 5 5 6 6 6 6 Average Carried 3 | 1 1 1 2 2 1 1 2 3 3 3 4 4 4 5 5 5 5 5 Final Capacity 6 | 2 2 3 3 3 3 3 3 4 4 5 5 5 5 5 6 6 6 6 Final Carried 6 | 2 2 2 2 2 1 2 3 4 4 4 4 4 5 5 6 6 6 4 Class Distribution -------------------- 26% | Hacker-Gunner 21% | Scavenger-Mutant 19% | Hacker-Mutant 15% | Hacker-Sprinter 5% | Scavenger-Scout 5% | Mutant 3% | Scout Dominant Class ---------------- Scavenger-Mutant | -10/Materials Scavenger-Mutant | -10/Mines Scavenger-Mutant | -9/Materials Scavenger-Mutant | -9/Mines Scavenger-Mutant | -9/Exiles Scavenger-Scout | -8/Mines Scout | -8/Materials Hacker-Gunner | -7/Factory Hacker-Gunner | -6/Factory Hacker-Mutant | -6/Lower Caves Hacker-Mutant | -6/Lower Caves Hacker-Gunner | -6/Data Miner Hacker-Gunner | -5/Proximity Caves Hacker-Mutant | -5/Factory Hacker-Sprinter | -5/Extension Hacker-Sprinter | -4/Factory Hacker-Sprinter | -3/Research Hacker-Gunner | -3/Testing Resources | -11 -10 -10 -9 -9 -9 -8 -8 -7 -6 -6 -6 -6 -5 -5 -5 -4 -3 -3 ----------- Run | Scr Mat Min Mat Min Exi Min Mat Fac Fac Low Low Dat Pro Fac Ext Fac Res Tes Matter Collected 1291 | 230 170 10 10 . . . 120 36 283 50 44 . 30 40 40 10 . 218 Remotely . | . . . . . . . . . . . . . . . . . . . Salvage Created 3819 | . 551 68 . . . . 617 138 254 314 330 . 745 321 140 316 . 25 Parts 192 | . 25 4 . . . . 28 8 17 19 14 . 23 23 11 15 2 3 Haulers Intercepted 3 | . . . . . . . 1 . . . . . . 2 . . . . Recyclers Shooed 1 | . . . . . . . . 1 . . . . . . . . . . Parts Field Recycled . | . . . . . . . . . . . . . . . . . . . Retrieved Matter . | . . . . . . . . . . . . . . . . . . . Parts Self-Destructed 46 | . . . . . . . . . . 8 6 . 32 . . . . . Prevented 3 | . . . . . . . . . . 3 . . . . . . . . Kills | -11 -10 -10 -9 -9 -9 -8 -8 -7 -6 -6 -6 -6 -5 -5 -5 -4 -3 -3 ------- Run | Scr Mat Min Mat Min Exi Min Mat Fac Fac Low Low Dat Pro Fac Ext Fac Res Tes Combat Hostiles Destroyed 87 | . 12 3 . . . . 14 3 8 12 8 . 11 6 3 4 1 2 Guns 54 | . 8 2 . . . . 7 2 4 9 6 . 6 1 3 4 1 1 Cannons 18 | . 4 1 . . . . 6 . . . . . 4 2 . . . 1 AOE 12 | . . . . . . . . . 4 3 2 . . 3 . . . . Classes Destroyed 14 | . 4 . . . . . 4 1 1 1 . . 1 . 1 . . 1 Worker 5 | . . . . . . . 1 . 1 . . . . 3 . . . . Hauler 3 | . . . . . . . 1 . . . . . . 2 . . . . Operator 3 | . 1 . . . . . . . . . . . . . 1 . . 1 Watcher 6 | . 3 . . . . . 1 . . . . . . 2 . . . . Swarmer 27 | . 3 2 . . . . 4 . 4 8 3 . 2 . 1 . . . Saboteur 1 | . . . . . . . . . . . . . . . . . . 1 Grunt 28 | . 9 1 . . . . 6 . 2 . 1 . 3 4 . 1 . 1 Brawler 4 | . . . . . . . . . 1 . . . 3 . . . . . Duelist 1 | . . . . . . . . . . . . . 1 . . . . . Protector 1 | . . . . . . . . . . . . . 1 . . . . . Sentry 8 | . . . . . . . 3 . 1 . . . 1 . 1 1 1 . Hunter 5 | . . . . . . . 1 2 . . . . . . . 2 . . Programmer 4 | . . . . . . . . 1 . . 1 . . 2 . . . . Behemoth 1 | . . . . . . . . . . . . . . . 1 . . . Thug 2 | . . . . . . . . . . 1 1 . . . . . . . Butcher 5 | . . . . . . . . . . 3 2 . . . . . . . Best Kill Streak 11 | . 6 2 . . . . 6 1 5 4 6 . 6 11 2 3 1 2 Combat Bots Only 6 | . 6 2 . . . . 6 1 4 4 6 . 6 6 1 3 1 1 Max Kills in Single Turn 8 | . 1 1 . . . . 1 1 4 3 2 . 1 8 1 1 1 1 Gunslinging 1 | . . . . . . . . . . 1 . . . . . . . . Exploded 3 | . . . . . . . . . 2 2 1 . . 3 . . . . Melee . | . . . . . . . . . . . . . . . . . . . Uniques/NPCs Destroyed . | . . . . . . . . . . . . . . . . . . . Combat | -11 -10 -10 -9 -9 -9 -8 -8 -7 -6 -6 -6 -6 -5 -5 -5 -4 -3 -3 -------- Run | Scr Mat Min Mat Min Exi Min Mat Fac Fac Low Low Dat Pro Fac Ext Fac Res Tes Damage Taken 6455 | . 734 115 . . . . 710 311 360 291 290 . 725 397 365 79 . 2078 Core 5010 | . 585 88 . . . . 438 238 280 227 226 . 581 318 289 66 . 1674 Absorbed by Shields 773 | . . . . . . . . . . . . . . . 64 . . 709 Redirected to Core 4213 | . 465 61 . . . . 399 209 212 217 213 . 483 280 266 45 . 1363 Core Remaining (%) 89 | 100 . 100 . . . 100 88 74 . . . . 71 . 85 100 . . Volleys Fired 271 | . 44 9 1 . . . 56 14 18 24 16 . 29 18 9 15 2 16 Largest 3 | . 2 2 2 . . . 3 3 3 3 3 . 3 3 3 3 3 3 Hottest 380 | . 110 110 110 . . . 166 166 190 183 183 . 230 380 380 380 380 380 Shots Fired 662 | . 88 18 2 . . . 137 42 51 51 36 . 85 42 27 39 6 38 Gun 462 | . 64 9 1 . . . 81 28 41 48 32 . 57 30 18 27 4 22 Cannon 188 | . 24 9 1 . . . 56 14 5 . . . 28 12 9 12 2 16 Launcher 12 | . . . . . . . . . 5 3 4 . . . . . . . Special . | . . . . . . . . . . . . . . . . . . . Kinetic . | . . . . . . . . . . . . . . . . . . . Thermal 644 | . 88 18 2 . . . 137 42 40 48 32 . 85 42 27 39 6 38 Explosive . | . . . . . . . . . . . . . . . . . . . Electromagnetic 18 | . . . . . . . . . 11 3 4 . . . . . . . Robot Hit Streak 26 | . 8 6 1 . . . 18 17 26 17 8 . 10 7 6 12 4 9 Robot Miss Streak 6 | . 2 3 1 . . . 6 2 2 3 4 . 3 4 2 2 . 3 Penetration Max . | . . . . . . . . . . . . . . . . . . . Secondary Targets 4 | . 2 . . . . . . . . 1 1 . . . . . . . Max Gunslinging Chain 1 | . 1 . . . . . . . . 1 1 . . . . . . . Shots Hit Robots 413 | . 60 10 1 . . . 80 34 40 38 25 . 55 15 16 13 4 22 Core Hits 170 | . 26 4 . . . . 31 6 18 16 13 . 23 14 6 6 2 5 Critical Hits 1 | . . . . . . . . . 1 . . . . . . . . . Critical Kills . | . . . . . . . . . . . . . . . . . . . Critical Parts Destroyed . | . . . . . . . . . . . . . . . . . . . Melee Attacks . | . . . . . . . . . . . . . . . . . . . Impact . | . . . . . . . . . . . . . . . . . . . Slashing . | . . . . . . . . . . . . . . . . . . . Piercing . | . . . . . . . . . . . . . . . . . . . Sneak Attacks . | . . . . . . . . . . . . . . . . . . . Combat Hostiles . | . . . . . . . . . . . . . . . . . . . Follow-up Attacks . | . . . . . . . . . . . . . . . . . . . Damage Inflicted 12847 | . 790 99 . . . . 1149 496 1002 1097 879 . 1721 2596 904 626 195 1293 Guns 7209 | . 580 63 . . . . 661 353 519 813 577 . 1145 527 695 578 143 555 Cannons 2757 | . 210 36 . . . . 488 143 71 . . . 576 186 209 48 52 738 Explosions 2881 | . . . . . . . . . 412 284 302 . . 1883 . . . . Melee . | . . . . . . . . . . . . . . . . . . . Ramming . | . . . . . . . . . . . . . . . . . . . Kinetic . | . . . . . . . . . . . . . . . . . . . Thermal 11993 | . 790 99 . . . . 1149 496 648 899 577 . 1721 2596 904 626 195 1293 Explosive . | . . . . . . . . . . . . . . . . . . . Electromagnetic 854 | . . . . . . . . . 354 198 302 . . . . . . . Impact . | . . . . . . . . . . . . . . . . . . . Slashing . | . . . . . . . . . . . . . . . . . . . Piercing . | . . . . . . . . . . . . . . . . . . . Highest Corruption 8 | . . . . . . . . . 1 1 2 2 2 . . . . 8 Average Corruption 2 | . . . . . . . . . 1 1 1 2 2 . . . . 5 Corruption Purged . | . . . . . . . . . . . . . . . . . . . Effects 19 | . . . . . . . . . . 3 1 1 7 . . . . 7 Message Errors 7 | . . . . . . . . . . 1 1 1 3 . . . . 1 Matter Fused 2 | . . . . . . . . . . . . . . . . . . 2 Energy Discharges 1 | . . . . . . . . . . . . . . . . . . 1 Data Loss (minor) 3 | . . . . . . . . . . 2 . . . . . . . 1 Data Loss (major) 1 | . . . . . . . . . . . . . . . . . . 1 Targeting Errors 3 | . . . . . . . . . . . . . 2 . . . . 1 Weapon Failures 2 | . . . . . . . . . . . . . 2 . . . . . Overload Shots 48 | . . . . . . . . . . . . . . 18 9 15 2 4 Effects 2 | . . . . . . . . . . . . . . 1 . 1 . . Heat Surge 1 | . . . . . . . . . . . . . . 1 . . . . Short Circuit 1 | . . . . . . . . . . . . . . . . 1 . . Overflow Damage 676 | . . . . . . . 25 . 1 . . . . 435 . . . 215 Projectiles 260 | . . . . . . . 25 . . . . . . 20 . . . 215 Explosions 416 | . . . . . . . . . 1 . . . . 415 . . . . Melee . | . . . . . . . . . . . . . . . . . . . Knockbacks . | . . . . . . . . . . . . . . . . . . . Impact . | . . . . . . . . . . . . . . . . . . . Kinetic . | . . . . . . . . . . . . . . . . . . . Secondary . | . . . . . . . . . . . . . . . . . . . Self-Inflicted Damage 300 | . . . . . . . 171 . 31 . 7 . . 91 . . . . Shots 6 | . . . . . . . 2 . 1 . 1 . . 2 . . . . Rammed . | . . . . . . . . . . . . . . . . . . . Targets Rammed . | . . . . . . . . . . . . . . . . . . . Kicked . | . . . . . . . . . . . . . . . . . . . Crushed . | . . . . . . . . . . . . . . . . . . . Highest Temperature 382 | . 117 54 11 . . . 84 . 382 15 15 . 353 304 234 232 34 60 Average Temperature 62 | . 39 23 8 . . . 28 . 51 8 9 . 104 84 91 87 34 41 Received Heat Transfer 1289 | . 273 18 . . . . 162 . 129 36 81 . 189 12 67 . . 322 Effects 2 | . . . . . . . . . . . . . 2 . . . . . Shutdowns 1 | . . . . . . . . . . . . . 1 . . . . . Energy Bleed 1 | . . . . . . . . . . . . . 1 . . . . . Siege Activations . | . . . . . . . . . . . . . . . . . . . Robots Corrupted . | . . . . . . . . . . . . . . . . . . . Combat Hostiles . | . . . . . . . . . . . . . . . . . . . Parts Fried 3 | . . . . . . . . . 1 . 2 . . . . . . . Impact Corruptions . | . . . . . . . . . . . . . . . . . . . Robots Melted 3 | . . . . . . . 1 1 . . . . 1 . . . . . Combat Hostiles 3 | . . . . . . . 1 1 . . . . 1 . . . . . Parts Melted 25 | . 10 . . . . . 7 1 1 2 . . 1 1 1 . . 1 Heat Transferred 16181 | . 2087 259 . . . . 2775 1147 1190 1542 1044 . 2544 1447 696 497 149 804 Parts Sabotaged 3 | . . . . . . . . . . . . . . . . . . 3 Parts Stolen . | . . . . . . . . . . . . . . . . . . . Parts Stripped . | . . . . . . . . . . . . . . . . . . . Power Chain Reactions 2 | . . . . . . . . . 1 1 . . . . . . . . Missiles Intercepted . | . . . . . . . . . . . . . . . . . . . Alert | -11 -10 -10 -9 -9 -9 -8 -8 -7 -6 -6 -6 -6 -5 -5 -5 -4 -3 -3 ------- Run | Scr Mat Min Mat Min Exi Min Mat Fac Fac Low Low Dat Pro Fac Ext Fac Res Tes Peak Influence 2123 | . 301 337 131 28 . . 478 399 252 . . . . 933 603 438 114 2123 Initial 457 | . . 90 131 28 . . . 188 195 . . . . 301 457 295 84 . Average 298 | . 145 170 70 28 . . 249 262 113 . . . . 295 446 245 33 1787 Maximum Alert Level 5 | . 1 1 . . . . 2 1 1 . . . . 3 2 2 . 5 Low Security (%) 54 | 100 61 62 100 100 . 100 48 34 81 . . . . 45 1 53 100 . Level 1 31 | . 38 37 . . . . 38 65 18 . . . . 47 42 12 . . Level 2 7 | . . . . . . . 13 . . . . . . 2 55 33 . . Level 3 1 | . . . . . . . . . . . . . . 4 . . . . Level 4 . | . . . . . . . . . . . . . . . . . . . Level 5 . | . . . . . . . . . . . . . . . . . . . High Security . | . . . . . . . . . . . . . . . . . . . Max Security 5 | . . . . . . . . . . . . . . . . . . 99 Squads Dispatched 25 | . 2 . . . . . 2 . 2 . . . 1 4 . 2 . 12 Investigation 1 | . . . . . . . . . 1 . . . . . . . . . Extermination 2 | . . . . . . . . . . . . . . 1 . 1 . . Reinforcement 7 | . 2 . . . . . 2 . 1 . . . . 1 . 1 . . Assault 15 | . . . . . . . . . . . . . 1 2 . . . 12 Garrison . | . . . . . . . . . . . . . . . . . . . Intercept . | . . . . . . . . . . . . . . . . . . . Construction Impeded 1 | . . . . . . . . . . . . . . . . 1 . . Haulers Reinforced 1 | . . . . . . . . . . . . . . 1 . . . . Stealth | -11 -10 -10 -9 -9 -9 -8 -8 -7 -6 -6 -6 -6 -5 -5 -5 -4 -3 -3 --------- Run | Scr Mat Min Mat Min Exi Min Mat Fac Fac Low Low Dat Pro Fac Ext Fac Res Tes Distress Signals 10 | . 2 . . . . . 4 1 . . . . . . 1 . 2 . Communications Jammed . | . . . . . . . . . . . . . . . . . . . Distress Signals . | . . . . . . . . . . . . . . . . . . . Times Spotted 264 | . 22 8 2 . . . 30 9 15 12 14 . 31 16 18 5 2 80 Peak Tracking Total 34 | . 6 5 2 . . . 10 5 4 4 7 . 8 10 6 2 2 34 Tactical Retreats 20 | . 1 1 . . . . 3 1 1 1 3 . 5 . . . . 4 Traps | -11 -10 -10 -9 -9 -9 -8 -8 -7 -6 -6 -6 -6 -5 -5 -5 -4 -3 -3 ------- Run | Scr Mat Min Mat Min Exi Min Mat Fac Fac Low Low Dat Pro Fac Ext Fac Res Tes Traps Triggered 2 | . 1 . . . . . . 1 . . . . . . . . . . Indirectly . | . . . . . . . . . . . . . . . . . . . Trap Hack Attempts . | . . . . . . . . . . . . . . . . . . . Triggered . | . . . . . . . . . . . . . . . . . . . Disarmed . | . . . . . . . . . . . . . . . . . . . Reprogrammed 9 | . . . . . . . . . . . . . . 1 4 4 . . Reused 1 | . . . . . . . . . . . . . . 1 . . . . Traps Extracted . | . . . . . . . . . . . . . . . . . . . Installed . | . . . . . . . . . . . . . . . . . . . Triggered 1 | . . . . . . . . . . . . . . 1 . . . . Machines | -11 -10 -10 -9 -9 -9 -8 -8 -7 -6 -6 -6 -6 -5 -5 -5 -4 -3 -3 ---------- Run | Scr Mat Min Mat Min Exi Min Mat Fac Fac Low Low Dat Pro Fac Ext Fac Res Tes Machines Disabled 20 | . 1 1 . . . . 3 . . . . . . 9 1 3 . 2 Max in Single Turn 8 | . 1 1 . . . . 1 . . . . . . 8 1 1 . 1 Machines Sabotaged . | . . . . . . . . . . . . . . . . . . . Garrisons Compromised . | . . . . . . . . . . . . . . . . . . . Overloaded Fab Kills . | . . . . . . . . . . . . . . . . . . . Fab Network Shutdowns 1 | . . . . . . . . . . . . . . 1 . . . . Hacking | -11 -10 -10 -9 -9 -9 -8 -8 -7 -6 -6 -6 -6 -5 -5 -5 -4 -3 -3 --------- Run | Scr Mat Min Mat Min Exi Min Mat Fac Fac Low Low Dat Pro Fac Ext Fac Res Tes Machines Accessed 38 | . 6 . 1 . . . 1 1 6 . . 3 . 6 4 6 4 . Terminals 22 | . 5 . 1 . . . 1 . 3 . . . . 2 4 2 4 . Fabricators 4 | . . . . . . . . 1 1 . . . . 2 . . . . Repair Stations 2 | . . . . . . . . . . . . . . 1 . 1 . . Recycling Units 3 | . 1 . . . . . . . . . . . . . . 2 . . Scanalyzers 2 | . . . . . . . . . 2 . . . . . . . . . Garrison Access 2 | . . . . . . . . . . . . . . 1 . 1 . . Total Hacks 149 | . 22 . 7 . . . 2 1 29 . . 22 . 22 11 21 12 . Successful 109 | . 9 . 4 . . . . 1 25 . . 22 . 19 6 15 8 . Failed 40 | . 13 . 3 . . . 2 . 4 . . . . 3 5 6 4 . Catastrophic 1 | . . . . . . . . . . . . . . . 1 . . . Database Lockouts . | . . . . . . . . . . . . . . . . . . . Manual 54 | . 12 . 4 . 2 . 2 . 6 . . . . 3 5 16 4 . Terminals 87 | . 19 . 7 . . . 2 . 15 . . . . 7 11 14 12 . Fabricators 13 | . . . . . . . . 1 2 . . . . 10 . . . . Repair Stations 5 | . . . . . . . . . . . . . . 3 . 2 . . Recycling Units 5 | . 3 . . . . . . . . . . . . . . 2 . . Scanalyzers 12 | . . . . . . . . . 12 . . . . . . . . . Garrison Access 5 | . . . . . . . . . . . . . . 2 . 3 . . Terminal Hacks 68 | . 6 . 4 . . . . . 10 . . 22 . 6 6 7 7 . Record 6 | . . . . . . . . . 1 . . 3 . 2 . . . . Part Schematic 11 | . . . . . . . . . . . . 7 . 1 1 . 2 . Robot Schematic 10 | . . . . . . . . . 1 . . 9 . . . . . . Prototype ID Bank 7 | . 1 . . . . . . . 1 . . 3 . 1 . . 1 . Level Access Points 1 | . . . . . . . . . . . . . . . 1 . . . Branch Access Points 4 | . 1 . 1 . . . . . 1 . . . . . . . 1 . Machine Index 2 | . . . . . . . . . 1 . . . . . . 1 . . Terminal Index 1 | . . . . . . . . . . . . . . . . . 1 . Alert Level 4 | . 1 . . . . . . . 1 . . . . 1 . 1 . . Unreport Threat 14 | . . . 2 . . . . . 3 . . . . . 3 4 2 . Reprogram Traps 3 | . . . . . . . . . . . . . . 1 1 1 . . Maintenance Status 1 | . . . 1 . . . . . . . . . . . . . . . Recall Investigation 1 | . 1 . . . . . . . . . . . . . . . . . Hauler Manifests 1 | . 1 . . . . . . . . . . . . . . . . . Registered Components 1 | . . . . . . . . . 1 . . . . . . . . . Registered Prototypes 1 | . 1 . . . . . . . . . . . . . . . . . Fabricator Hacks 12 | . . . . . . . . 1 2 . . . . 9 . . . . Load Schematic 3 | . . . . . . . . . 1 . . . . 2 . . . . Build 9 | . . . . . . . . 1 1 . . . . 7 . . . . Repair Station Hacks 4 | . . . . . . . . . . . . . . 2 . 2 . . Scan Component 2 | . . . . . . . . . . . . . . 1 . 1 . . Repair 2 | . . . . . . . . . . . . . . 1 . 1 . . Recycling Unit Hacks 3 | . 1 . . . . . . . . . . . . . . 2 . . Process 2 | . . . . . . . . . . . . . . . . 2 . . Report Inventory 1 | . 1 . . . . . . . . . . . . . . . . . Scanalyzer 12 | . . . . . . . . . 12 . . . . . . . . . Insert Component 6 | . . . . . . . . . 6 . . . . . . . . . Analyze 6 | . . . . . . . . . 6 . . . . . . . . . Garrison Access Hacks 1 | . . . . . . . . . . . . . . . . 1 . . Coupler Status 1 | . . . . . . . . . . . . . . . . 1 . . Unauthorized Hacks 9 | . 2 . . . . . . . 1 . . . . 2 . 3 1 . Terminals 6 | . 1 . . . . . . . 1 . . . . 1 . 2 1 . Assimilate 4 | . 1 . . . . . . . . . . . . 1 . 2 . . Botnet 2 | . . . . . . . . . 1 . . . . . . . 1 . Fabricators . | . . . . . . . . . . . . . . . . . . . Repair Stations . | . . . . . . . . . . . . . . . . . . . Recycling Units 1 | . 1 . . . . . . . . . . . . . . . . . Mask 1 | . 1 . . . . . . . . . . . . . . . . . Scanalyzers . | . . . . . . . . . . . . . . . . . . . Garrison Access 2 | . . . . . . . . . . . . . . 1 . 1 . . Reprogram 2 | . . . . . . . . . . . . . . 1 . 1 . . Data Cores Recovered 1 | . . . . . . . . . . . . . . . 1 . . . Used . | . . . . . . . . . . . . . . . . . . . Hacking Detections 32 | . 6 . 1 . . . 1 . 6 . . . . 6 4 4 4 . Full Trace Events 1 | . . . . . . . . . 1 . . . . . . . . . Feedback Events 1 | . . . . . . . . . 1 . . . . . . . . . Corruption 1 | . . . . . . . . . 1 . . . . . . . . . Feedback Blocked . | . . . . . . . . . . . . . . . . . . . Robot Schematics Acquired 10 | . . . . . . . . . 1 . . 9 . . . . . . Robots Built 4 | . . . . . . . . . . . . . . 4 . . . . Matter 636 | . . . . . . . . . . . . . . 636 . . . . Time 112 | . . . . . . . . . . . . . . 112 . . . . Total Robot Build Rating 24 | . . . . . . . . . . . . . . 24 . . . . Part Schematics Acquired 17 | . . . . . . . . . 6 . . 7 . 1 1 . 2 . Parts Built 4 | . . . . . . . . 2 2 . . . . . . . . . Matter 424 | . . . . . . . . 212 212 . . . . . . . . . Time 141 | . . . . . . . . 106 35 . . . . . . . . . Total Part Build Rating 24 | . . . . . . . . 12 12 . . . . . . . . . Parts Repaired 2 | . . . . . . . . . . . . . . 1 . 1 . . Time 56 | . . . . . . . . . . . . . . 28 . 28 . . Parts Recycled . | . . . . . . . . . . . . . . . . . . . Recycled Matter 129 | . . . . . . . . . . . . . . . . 129 . . Retrieved Matter . | . . . . . . . . . . . . . . . . . . . Retrieved Components . | . . . . . . . . . . . . . . . . . . . Parts Scanalyzed 6 | . . . . . . . . . 6 . . . . . . . . . Part Schematics Acquired 6 | . . . . . . . . . 6 . . . . . . . . . Parts Damaged . | . . . . . . . . . . . . . . . . . . . Bothacking | -11 -10 -10 -9 -9 -9 -8 -8 -7 -6 -6 -6 -6 -5 -5 -5 -4 -3 -3 ------------ Run | Scr Mat Min Mat Min Exi Min Mat Fac Fac Low Low Dat Pro Fac Ext Fac Res Tes Used RIF Installer . | . . . . . . . . . . . . . . . . . . . Robots Hacked . | . . . . . . . . . . . . . . . . . . . Non-combat . | . . . . . . . . . . . . . . . . . . . Combat . | . . . . . . . . . . . . . . . . . . . Robot Hacks Applied . | . . . . . . . . . . . . . . . . . . . Relay Couplers Released . | . . . . . . . . . . . . . . . . . . . Robots Rewired 14 | . . . . . . . . . 2 . . . 2 . 10 . . . Allies Hacked . | . . . . . . . . . . . . . . . . . . . Hacks Repelled . | . . . . . . . . . . . . . . . . . . . Allies | -11 -10 -10 -9 -9 -9 -8 -8 -7 -6 -6 -6 -6 -5 -5 -5 -4 -3 -3 -------- Run | Scr Mat Min Mat Min Exi Min Mat Fac Fac Low Low Dat Pro Fac Ext Fac Res Tes Total Allies 28 | . 1 3 . . . . . . 2 . . . 3 5 12 2 . . Largest Group 11 | . 1 3 3 2 2 2 2 . 2 . . . 2 5 11 8 5 2 Highest-Rated Group 452 | . 10 40 40 32 32 32 32 . 44 . . . 94 210 452 351 151 54 Highest-Rated Ally 156 | . 10 16 16 16 16 16 16 . 32 . . . 94 46 156 156 44 44 Total Orders . | . . . . . . . . . . . . . . . . . . . Ally Attacks 240 | . . 32 4 . . . 6 . 15 . . . 32 43 70 35 3 . Total Damage 4490 | . . 233 63 . . . 76 . 397 . . . 848 433 1663 753 24 . Kills 45 | . . 4 1 . . . . . 4 . . . 7 7 16 6 . . Allies Corrupted . | . . . . . . . . . . . . . . . . . . . Allies Melted . | . . . . . . . . . . . . . . . . . . . Intel | -11 -10 -10 -9 -9 -9 -8 -8 -7 -6 -6 -6 -6 -5 -5 -5 -4 -3 -3 ------- Run | Scr Mat Min Mat Min Exi Min Mat Fac Fac Low Low Dat Pro Fac Ext Fac Res Tes Robot Analysis Total . | . . . . . . . . . . . . . . . . . . . Derelict Logs Recovered 7 | . . 1 . 1 . . . . . 2 2 . 1 . . . . . Drone Launches . | . . . . . . . . . . . . . . . . . . . Drone Recoveries . | . . . . . . . . . . . . . . . . . . . Exploration | -11 -10 -10 -9 -9 -9 -8 -8 -7 -6 -6 -6 -6 -5 -5 -5 -4 -3 -3 ------------- Run | Scr Mat Min Mat Min Exi Min Mat Fac Fac Low Low Dat Pro Fac Ext Fac Res Tes Turns Passed 5797 | 30 670 215 66 128 455 81 525 255 538 278 224 35 308 969 264 300 201 255 Spaces Moved 7763 | 33 640 230 74 115 736 119 357 463 949 517 424 103 499 954 376 413 361 400 Core 17 | 9 . . . . . . 1 . . . . . 4 . 3 . . . Treads . | . . . . . . . . . . . . . . . . . . . Legs . | . . . . . . . . . . . . . . . . . . . Wheels 203 | 24 179 . . . . . . . . . . . . . . . . . Hover 2015 | . 461 230 74 115 736 119 280 . . . . . . . . . . . Flight 5528 | . . . . . . . 76 463 949 517 424 103 495 954 373 413 361 400 Fastest Speed 31 | 50 56 56 56 56 56 56 46 34 34 34 34 34 34 31 31 31 31 31 Average Speed 41 | 71 63 56 56 56 56 56 66 37 34 34 34 34 34 33 31 31 31 33 Slowest Speed 200 | 80 90 56 56 56 56 56 200 114 34 34 34 34 150 34 150 114 31 37 Overloaded Moves . | . . . . . . . . . . . . . . . . . . . Propulsion Burnouts . | . . . . . . . . . . . . . . . . . . . Robots Hopped 26 | . . . . . . . . 1 9 1 1 . . 3 4 2 . 5 Cave-ins Triggered . | . . . . . . . . . . . . . . . . . . . Exploration Rate (%) 40 | 4 80 52 10 23 81 25 27 16 25 64 68 74 72 23 44 13 10 51 Regions Visited 18 Branch Regions 10 Pre-discovered Areas 1 | . . 1 . . . . . . . . . . . . . . . . Known Exits Taken 6 | . 1 . 1 . . . . . 1 1 . . . . 1 . 1 . Unknown Exits Taken 12 | 1 . 1 . 1 1 1 1 1 . . 1 1 1 1 . 1 . . Scrap Searched 9 | . . . . . . 1 . . . 1 2 . 5 . . . . . Spaces Dug 27 | . . . . . . . . . . . . . . 6 . 17 . 4 Terrain Destroyed 164 | . . . . . . . 45 . 3 7 . . 22 50 4 22 . 11 Melee . | . . . . . . . . . . . . . . . . . . . Projectile 79 | . . . . . . . . . . . . . 22 20 4 22 . 11 AOE 85 | . . . . . . . 45 . 3 7 . . . 30 . . . . Terrain Rammed . | . . . . . . . . . . . . . . . . . . . Walls Destroyed . | . . . . . . . . . . . . . . . . . . . Machines Disabled . | . . . . . . . . . . . . . . . . . . . Actions | -11 -10 -10 -9 -9 -9 -8 -8 -7 -6 -6 -6 -6 -5 -5 -5 -4 -3 -3 --------- Run | Scr Mat Min Mat Min Exi Min Mat Fac Fac Low Low Dat Pro Fac Ext Fac Res Tes Total 9733 | 37 812 297 96 178 780 132 526 512 1115 569 469 102 566 1570 495 549 445 483 Wait 1252 | . 83 30 20 64 35 11 70 16 102 2 5 . 6 579 44 77 77 31 Move 7695 | 32 639 229 73 114 735 118 356 460 930 514 421 102 498 947 368 408 360 391 Hop 24 | . . . . . . . . 1 9 1 1 . . 3 3 2 . 4 Pick Up 55 | 2 5 1 1 . 3 2 4 1 7 4 3 . 3 2 5 6 2 4 Fast Attach 39 | 3 11 . . . . . 7 3 5 . . . . 2 1 5 . 2 Attach 23 | . 2 . 1 . 2 1 2 1 2 2 1 . 1 . . 4 1 3 Detach 1 | . . . . . . . . 1 . . . . . . . . . . Swap 39 | . 4 1 . . . . 3 4 12 . 2 . 1 5 . 1 1 5 Drop 85 | . 12 1 . . 5 . 6 7 16 3 4 . 1 6 5 9 2 8 Fire 271 | . 44 9 1 . . . 56 14 18 24 16 . 29 18 9 15 2 16 Melee . | . . . . . . . . . . . . . . . . . . . Ram . | . . . . . . . . . . . . . . . . . . . Kick . | . . . . . . . . . . . . . . . . . . . Crush . | . . . . . . . . . . . . . . . . . . . Escape Stasis 15 | . . . . . . . . . . . . . . . . . . 15 Rewire 45 | . . . . . . . . . 2 . . . 9 4 30 . . . Trap . | . . . . . . . . . . . . . . . . . . . Miscellaneous 189 | . 12 26 . . . . 22 4 12 19 16 . 18 4 30 22 . 4 Route ------- -11/Scrapyard -10/Materials (discovered 4 exits: *Mat x2 / *Min x2) -10/Mines -9/Materials -9/Mines -9/Exiles (discovered 2 exits: [*Min x2]) -8/Mines -8/Materials -7/Factory -6/Factory (discovered 2 exits: *Low x2) -6/Lower Caves -6/Lower Caves (discovered 2 exits: *Fac / *Dat) -6/Data Miner -5/Proximity Caves -5/Factory (discovered 3 exits: *Fac / [*Upp] / *Ext) -5/Extension (discovered 2 exits: *Fac x2) -4/Factory -3/Research (discovered 2 exits: *Tes x2) -3/Testing History --------- Turn | Location | Event 1 | -11/Scrapyard | Upgraded with Propulsion slot (x1) 1 | -11/Scrapyard | Upgraded with Utility slot (x1) 1 | -11/Scrapyard | Upgraded with Weapon slot (x1) 5 | -11/Scrapyard | Discovered new exit (range 16) 31 | -11/Scrapyard | Entered Materials 195 | -10/Materials | Core integrity fell below 50% 247 | -10/Materials | Discovered new exit (range 12) 445 | -10/Materials | Discovered new exit (range 16) 485 | -10/Materials | Identified exit to Mines 502 | -10/Materials | Discovered new exit (range 16) 605 | -10/Materials | Build established: Scavenger-Mutant 620 | -10/Materials | Reached level 2 624 | -10/Materials | Upgraded with Utility slot (x1) 701 | -10/Materials | Entered Mines 701 | -10/Mines | Accompanied by 1 ally 709 | -10/Mines | Assembled infested the area 713 | -10/Mines | Learned location of Mines (-8) 714 | -10/Mines | Assisted by a Guerilla fighting off Assembled 717 | -10/Mines | Met a Derelict bent on vengeance 766 | -10/Mines | A weapon hastily lodged in a ceiling crevice suddenly fell to the ground 786 | -10/Mines | Assisted by bots powering up and referring to "LRC-V3" 838 | -10/Mines | Reached level 3 838 | -10/Mines | Upgraded with Utility slot (x1) 891 | -10/Mines | Discovered new exit (range 16) 916 | -10/Mines | Entered Materials 916 | -9/Materials | Accompanied by 3 allies 918 | -9/Materials | Reached level 4 929 | -9/Materials | Identified exit to Mines 982 | -9/Materials | Entered Mines 982 | -9/Mines | Accompanied by 2 allies 987 | -9/Mines | Learned Materials terminal intel 1081 | -9/Mines | Deemed a non-threat by the Exiles lab entrance 1081 | -9/Mines | Discovered new exit (range 5) 1110 | -9/Mines | Entered Exiles 1110 | -9/Exiles | Accompanied by 2 allies 1126 | -9/Exiles | Met 8R-AWN 1133 | -9/Exiles | Met EX-HEX 1158 | -9/Exiles | Met EX-DEC 1200 | -9/Exiles | Met EX-BIN 1279 | -9/Exiles | Visited The Gauntlet 1332 | -9/Exiles | Discovered new exit (range 14) 1409 | -9/Exiles | Reached level 5 1409 | -9/Exiles | Aligned with FarCom system 1410 | -9/Exiles | Given EX-Vault access code 1422 | -9/Exiles | Opened EX-Vault 1427 | -9/Exiles | Found Prototype Device 1428 | -9/Exiles | Identified Trap Reconfigurator 1431 | -9/Exiles | Found Prototype Energy Cannon 1453 | -9/Exiles | Found Prototype Device 1454 | -9/Exiles | Identified Chronowheel 1454 | -9/Exiles | Activated Chronowheel 1467 | -9/Exiles | Warned to stay clear of 0b10 Research branches 1523 | -9/Exiles | Discovered new exit (range 14) 1565 | -9/Exiles | Entered Mines 1565 | -8/Mines | Accompanied by 2 allies 1624 | -8/Mines | Discovered new exit (range 7) 1646 | -8/Mines | Entered Materials 1646 | -8/Materials | Accompanied by 2 allies 1647 | -8/Materials | Loaded intel: 12 terminal locations 1648 | -8/Materials | Reached level 6 1652 | -8/Materials | Upgraded with Power slot (x1) 1652 | -8/Materials | Upgraded with Propulsion slot (x1) 1652 | -8/Materials | Upgraded with Utility slot (x1) 1854 | -8/Materials | Build established: Scavenger-Scout 1894 | -8/Materials | Reached level 7 1905 | -8/Materials | Upgraded with Weapon slot (x1) 2067 | -8/Materials | Reached level 8 2148 | -8/Materials | Discovered new exit (range 4) 2171 | -8/Materials | Entered Factory 2173 | -7/Factory | Reached level 9 2337 | -7/Factory | Fabricated Field Propulsion Drive (x2) 2422 | -7/Factory | Discovered new exit (range 9) 2426 | -7/Factory | Entered another Factory area 2428 | -6/Factory | Reached level 10 2530 | -6/Factory | Identified exit to Lower Caves 2543 | -6/Factory | Build established: Hacker-Gunner 2709 | -6/Factory | Reached level 11 2833 | -6/Factory | Fabricated Field Propulsion Drive (x2) 2964 | -6/Factory | Entered Lower Caves 2966 | -6/Lower Caves | Reached level 12 2966 | -6/Lower Caves | Upgraded with Utility slot (x1) 2985 | -6/Lower Caves | Learned Factory terminal intel 3092 | -6/Lower Caves | Identified exit to Lower Caves 3242 | -6/Lower Caves | Entered another Lower Caves area 3242 | -6/Lower Caves | Learned Factory interactive machine intel 3244 | -6/Lower Caves | Ambushed by wild Derelicts 3244 | -6/Lower Caves | Reached level 13 3255 | -6/Lower Caves | Discovered new exit (range 17) 3365 | -6/Lower Caves | Learned Factory trap positions 3427 | -6/Lower Caves | Discovered new exit (range 7) 3466 | -6/Lower Caves | Entered Data Miner 3466 | -6/Data Miner | Discovered new exit (range 6) 3468 | -6/Data Miner | Reached level 14 3472 | -6/Data Miner | Met Data Miner 3490 | -6/Data Miner | Received God Mode back door access code from Data Miner 3501 | -6/Data Miner | Entered Proximity Caves 3505 | -5/Proximity Caves | Escorted by Enhanced Grunt 3509 | -5/Proximity Caves | Reached level 15 3555 | -5/Proximity Caves | Upgraded with Utility slot (x1) 3579 | -5/Proximity Caves | Attracted the attention of an 0b10 outpost 3612 | -5/Proximity Caves | Reached level 16 3736 | -5/Proximity Caves | Attracted the attention of an 0b10 checkpoint 3749 | -5/Proximity Caves | Learned 4 Factory zone layouts 3780 | -5/Proximity Caves | Spotted B-75 Beast 3808 | -5/Proximity Caves | Discovered new exit (range 2) 3809 | -5/Proximity Caves | Entered Factory 3811 | -5/Factory | Loaded intel: 58 trap records 3811 | -5/Factory | Reached level 17 3812 | -5/Factory | Loaded intel: 48 interactive machine locations 3813 | -5/Factory | Loaded intel: 22 terminal locations 3901 | -5/Factory | Discovered new exit (range 19) 3901 | -5/Factory | Discovered new exit (range 15) 4239 | -5/Factory | Build established: Hacker-Mutant 4458 | -5/Factory | Fabricated X-72 Disruptor (x2) 4514 | -5/Factory | Fabricated X-72 Disruptor (x2) 4562 | -5/Factory | Reached level 18 4566 | -5/Factory | Discovered new exit (range 13) 4581 | -5/Factory | Upgraded with Propulsion slot (x1) 4701 | -5/Factory | Repaired Field Propulsion Drive 4708 | -5/Factory | Local fabrication network quarantined 4709 | -5/Factory | First assault squad dispatched 4733 | -5/Factory | Reached level 19 4778 | -5/Factory | Entered Extension 4793 | -5/Extension | Reached level 20 4799 | -5/Extension | Rescued A7 4814 | -5/Extension | Upgraded with Utility slot (x1) 4822 | -5/Extension | Identified exit to Factory 4880 | -5/Extension | Rescued a captive Derelict 4951 | -5/Extension | Reached level 21 4996 | -5/Extension | Spotted B-75 Beast 4998 | -5/Extension | Spotted B-75 Beast 5004 | -5/Extension | Destroyed B-75 Beast 5015 | -5/Extension | Allies destroyed B-75 Beast 5042 | -5/Extension | Entered Factory 5042 | -4/Factory | Accompanied by 8 allies (A7) 5044 | -4/Factory | Reached level 22 5052 | -4/Factory | Upgraded with Propulsion slot (x1) 5086 | -4/Factory | Repaired Field Propulsion Drive 5155 | -4/Factory | Reached level 23 5288 | -4/Factory | Discovered new exit (range 20) 5342 | -4/Factory | Entered Research 5342 | -3/Research | Accompanied by 5 allies 5344 | -3/Research | Reached level 24 5344 | -3/Research | Upgraded with Utility slot (x1) 5401 | -3/Research | Build established: Hacker-Sprinter 5422 | -3/Research | Identified exit to Testing 5543 | -3/Research | Entered Testing 5543 | -3/Testing | Accompanied by 2 allies 5544 | -3/Testing | Reached level 25 5544 | -3/Testing | Maximum security lockdown engaged 5545 | -3/Testing | Reached level 26 5638 | -3/Testing | Spotted PX-XPEHX81ZI2 5657 | -3/Testing | Found Prototype Energy Cannon 5657 | -3/Testing | Identified Null Cannon 5748 | -3/Testing | Reached level 27 5776 | -3/Testing | Spotted Executioner 5776 | -3/Testing | Spotted Investigator 5780 | -3/Testing | Scanned by Researcher 5785 | -3/Testing | Core integrity fell below 50% 5794 | -3/Testing | Core integrity fell below 20% 5798 | -3/Testing | Destroyed by G-67 Veteran with Plasma Rifle Last Messages --------------- 05796_ G-67 Veteran stasis bubble strength at 86. 05796_ L-61 Swordsman stasis bubble strength at 53. 05796_ I-47 Archangel stasis bubble strength at 40. 05796_ L-61 Swordsman stasis bubble strength at 32. 05796_ I-47 Archangel stasis bubble strength at 10. 05796_ G-67 Veteran stasis bubble strength at 48. 05796_ E-15 Imp stasis bubble strength at 95. 05796_ Penetrated by Slug. 05797_ Held in stasis. 05797_ G-73 Enforcer stasis bubble strength at 39. 05797_ G-67 Veteran stasis bubble strength at 67. 05797_ G-73 Enforcer stasis bubble strength at 39. 05797_ G-67 Veteran stasis bubble strength at 67. 05797_ L-61 Swordsman stasis bubble strength at 32. 05797_ I-47 Archangel stasis bubble strength at 30. 05797_ L-61 Swordsman stasis bubble strength at 11. 05797_ I-47 Archangel stasis bubble bursts. 05797_ P-80 Master resets B-74 Champion, system corruption cleaned. 05797_ G-67 Veteran stasis bubble strength at 29. 05797_ E-15 Imp stasis bubble strength at 90. Map ----- +----------------------------------------------------+ | ???????############# == #???? ! ?"?????? | | ???????????????????## ### ##### ? ??????? | | ????????????????#####+########### + ? ??????? | | ????????????????# #??# #???? #? ???????? | | ????????????????# " ####"##### # ???????? | | ????????????????# """" + + ?????????? | | ????????????????# """" ###" ##??????????? | | ????????????????# """" #??# """ #???????????? | | ????????????????# """" #??# """ +???????????? | | ????????????????# #??# = *""" #???????????? | | ????????????????# #### * #???????????? | | ????????##+###### "" =+ #???????????? | | ????????? # """ # ##/##+##+##??????????? | | ?????????? # R"!# # #??????????? | | ??????????? + """ # + #??????????? | | ???##+####+## # # #### #??????????? | | ???# ## #####;## #### #??????????? | | ???# """ # ####; *############??????????? | | ???# """" # T" #?????????????????????? | | ???# "" # [#?????????????????????? | | ???# " # #?????????????????????? | | ???# "" # ##### #?????????????????????? | | ???# "" " ### ######## ##?????????????????????? | | ???# """" ### ### # #??????????????????????? | | ???# """" + + + #??????????????????????? | | ???# ####### # @#########+###??????????? | | ???# #?????# # #??????????? | | ???#########?????#! # % b #??????????? | | ?????????????????# # b #??????????? | | ?????????????????# #i epEg gp !! #??????????? | | ?????????????????# #; hm g! !! #??????????? | | ?????????????????# ##glgg gip! #??????????? | | ?????????????????####### #??????????? | | ???????????????????????#ili bi #??????????? | | ??????????????????######cggg % % #??????????? | | ??????????????????#! gg]%####+#########???????? | | ??????????????????# g #gl# " #???????? | | ??????????????????# """ / + "[ #???????? | | ??????????????????# """ # ##h" " #???????? | | ??????????????????# """ #^## " """ #???????? | | ??????????????????# [# ## " #???????? | | ?????????????????######### ##w"""""" #???????? | | ?????????????????# | # ## """""" #???????? | | ?????????????????# "" # ## " #???????? | | ?????????????????# "" # ## " """ #???????? | | ?????????????????# = "" # ## " " " #???##### | | ?????????????????# T" # ## " " ## | | ?????????????????# """ # ## ## "" | | ?????????????????# "" # ########/####### """ "" | | ?????????????????# # #?# """ "" | +----------------------------------------------------+ Best States ------------- Heat Dissipation 116 Energy Generation 51 Energy Capacity 840 Matter Stores 300 Matter Capacity 300 Sight Range 22 Robot Scan Range 17 Terrain Scan Density 10 ECM Strength 2 Additional Mass Support 9 Base Temperature (-) 200 Armor Coverage 300 Resistance: KI 20 Resistance: TH 20 Resistance: EX 20 Thermal Conversion 60 Evasion (%) 69 Targeting Accuracy 8 Particle Charging 20 Offensive Hacking 47 Defensive Hacking 12 Item Schematics ----------------- Field Propulsion Drive | -6/Factory | Scanalyzed Prc. Grenade Launcher | -6/Factory | Scanalyzed Imp. Light Armor Plating | -6/Factory | Scanalyzed Imp. Thermal Converter | -6/Factory | Scanalyzed Imp. System Shield | -6/Factory | Scanalyzed Imp. Hacking Suite | -6/Factory | Scanalyzed Combat Drone Bay | -6/Data Miner | Free Lgt. Regenerative Plating | -6/Data Miner | Free Triangulator | -6/Data Miner | Free Exp. Terrain Scanner | -6/Data Miner | Free Exp. Terrain Scan Processor | -6/Data Miner | Free Exp. Targeting Computer | -6/Data Miner | Free Exp. ECM Suite | -6/Data Miner | Free Adv. Coolant Injector | -5/Factory | Hacked Adv. Cryofiber Web | -5/Extension | Hacked Enh. Quantum Rifle | -3/Research | Hacked Adv. Phase Shifter | -3/Research | Hacked Robot Schematics ------------------ Y-54 Guardian | -6/Factory | Hacked I-47 Archangel | -6/Data Miner | Free I-36 Angel | -6/Data Miner | Free P-70 Sage | -6/Data Miner | Free H-66 Slayer | -6/Data Miner | Free X-72 Disruptor | -6/Data Miner | Free L-41 Fighter | -6/Data Miner | Free G-67 Veteran | -6/Data Miner | Free G-50 Soldier | -6/Data Miner | Free S-27 Virus | -6/Data Miner | Free Fabricated ------------ Field Propulsion Drive | x2 | -7/Factory | Preloaded Field Propulsion Drive | x2 | -6/Factory X-72 Disruptor | x2 | -5/Factory X-72 Disruptor | x2 | -5/Factory Alien Tech Used ----------------- None Achievements -------------- None Challenges ------------ None RPGLIKE | -11 -10 -10 -9 -9 -9 -8 -8 -7 -6 -6 -6 -6 -5 -5 -5 -4 -3 -3 --------- Run | Scr Mat Min Mat Min Exi Min Mat Fac Fac Low Low Dat Pro Fac Ext Fac Res Tes Levels Raised 26 | . 1 1 1 . 1 . 3 1 2 1 1 1 2 3 2 2 1 3 XP Earned 42359 | 3000 1790 1754 1721 500 350 500 4185 2100 3278 1625 1257 650 3772 3937 3045 2978 2375 3542 XP Spent 41550 | 2985 800 2050 1580 . . . 4460 3100 1505 2950 1550 . 4405 3020 4480 1400 3215 4050 Upgrades 85 | 11 1 3 13 . . . 10 5 4 2 4 . 9 6 6 1 4 6 Power Slot 1 | . . . . . . . 1 . . . . . . . . . . . Propulsion Slot 4 | 1 . . . . . . 1 . . . . . . 1 . 1 . . Utility Slot 8 | 1 1 1 . . . . 1 . . 1 . . 1 . 1 . 1 . Weapon Slot 2 | 1 . . . . . . 1 . . . . . . . . . . . Core Integrity 20 | 1 . . 7 . . . . . 1 . . . 3 1 4 . 3 . Heat Dissipation 10 | 3 . . . . . . 6 . . . . . 1 . . . . . Energy Generation 2 | . . . . . . . . 1 . . . . 1 . . . . . Energy Storage 2 | . . . . . . . . . . . . . . 2 . . . . Mass Support 1 | 1 . . . . . . . . . . . . . . . . . . Inventory Capacity 6 | 2 . 1 . . . . . 1 . 1 . . . . 1 . . . Sight Range 6 | . . . . . . . . . 2 . 2 . . . . . . 2 Sensor Range 2 | . . . 2 . . . . . . . . . . . . . . . Ranged Accuracy 1 | 1 . . . . . . . . . . . . . . . . . . Hack Attack % 5 | . . 1 . . . . . 3 1 . . . . . . . . . KI Resistance % 4 | . . . 2 . . . . . . . . . . 1 . . . 1 TH Resistance % 4 | . . . 2 . . . . . . . . . 1 . . . . 1 EX Resistance % 4 | . . . . . . . . . . . 2 . . . . . . 2 TH Damage % 3 | . . . . . . . . . . . . . 2 1 . . . . Protomatter Created 1315 | . 100 26 . . . . 220 34 140 152 114 . 122 140 73 75 62 57 Integrity Restored 3955 | . 264 498 . . . . 440 96 252 399 323 . 379 78 666 483 . 77 Core 3406 | . 264 409 . . . . 322 96 252 399 290 . 288 78 666 272 . 70 Parts 549 | . . 89 . . . . 118 . . . 33 . 91 . . 211 . 7 Protomatter Decayed 600 | . 12 40 . . . . 130 2 99 . 13 . 47 42 93 89 3 30 Game ------ Seed BehemothRecyclingDoomcannon Manual? 0 Play Time 02:20:47 Cumulative 94.8 hours Start 2021.12.05 @ 05:24:10 End 2021.12.06 @ 05:44:53 Sessions 3 Manual Loads 0 Difficulty Rogue Special Mode Winter2019/RPGLIKE Game No. 129 Rogue 129 Adventurer 0 Explorer 0 Win Type - Total 1 Types 1/0/0/0/0/0/0/0/0 Lore% 43 Gallery% 55 Achievement% 44 Wizard Run 0 Options --------- ASCII 0 Keyboard 0 Movement Mouse Keybinds 0 Fullscreen 2 Font 18/X11 Map View 76x50 Tactical HUD 1 Map Filters NONE Filters NONE Steam 1 RUN: 867857a1-fc7f-467f-a8aa-d8096c33175e